bitfinex-derivatives/quotes_BTCF0:USTF0_20251217
["timestamp","ask_amount","ask_price","bid_price","bid_amount"]
[1765985476849,0.3608,90023.0,90015.0,0.34968]
[1765985477051,0.002,90041.0,90022.0,0.3608]
[1765985477256,0.002,90041.0,90033.0,0.3608]
[1765985478550,0.09098018,90042.0,90033.0,0.3608]
[1765985478757,0.0111091,90045.0,90033.0,0.3608]
[1765985478955,0.08919102,90045.0,90033.0,0.3608]
[1765985479152,0.001,90041.0,90033.0,0.3608]
[1765985479555,0.0111099,90039.0,90033.0,0.3608]
[1765985479753,0.0111095,90042.0,90033.0,0.3608]
[1765985480154,0.0121091,90045.0,90033.0,0.3608]
[1765985480467,0.09015545,90045.0,90033.0,0.3608]
[1765985480663,0.001,90045.0,90033.0,0.3608]
[1765985481056,0.0111095,90042.0,90033.0,0.3608]
[1765985481362,0.0121091,90045.0,90033.0,0.3608]
[1765985481567,0.09895244,90045.0,90033.0,0.3608]
[1765985481760,0.02711626,90047.0,90033.0,0.3608]
[1765985481960,0.0111092,90044.0,90033.0,0.3608]
[1765985482465,0.001,90042.0,90033.0,0.3608]
[1765985482867,0.0111107,90032.0,90030.0,0.34968]
[1765985483071,0.0111122,90020.0,90003.0,0.3608]
[1765985483261,0.0111131,90012.0,90004.0,0.3608]
[1765985483573,0.3608,90013.0,90002.0,0.0111143]
[1765985483865,0.66812,90024.0,90012.0,0.3608]
[1765985484452,0.6792317,90024.0,90012.0,0.3608]
[1765985484658,0.3608,90022.0,90012.0,0.3608]
[1765985484864,0.0111136,90009.0,89994.0,0.3608]
[1765985485162,0.3608,90005.0,89992.0,0.3607956]
[1765985485362,0.3608,90005.0,89992.0,0.34968]
[1765985485671,0.3608,90005.0,89955.0,0.0111202]
[1765985485672,0.0111173,89979.0,89955.0,0.0111202]
[1765985485865,0.5306,89979.0,89963.0,0.00016666]
[1765985486072,1.38964,90004.0,89963.0,0.00016666]
[1765985486073,0.6262,89989.0,89970.0,0.3607982]
[1765985486254,0.50304,89993.0,89970.0,0.34968]
[1765985486568,0.58332227,89993.0,89970.0,0.34968]
[1765985486960,0.58332227,89993.0,89978.0,0.0111173]
[1765985487163,0.58332227,89993.0,89970.0,0.34968]
[1765985487365,0.0111165,89986.0,89970.0,0.34968]
[1765985487561,0.40728522,89990.0,89963.0,0.00016666]
[1765985487765,0.0111178,89975.0,89963.0,0.00016666]
[1765985487962,0.0111175,89977.0,89963.0,0.00016666]
[1765985488168,0.40728522,89980.0,89963.0,0.00016666]
[1765985488169,0.0111178,89975.0,89963.0,0.00016666]
[1765985488466,0.0111158,89991.0,89963.0,0.00016666]
[1765985488467,0.3527173,89978.0,89963.0,0.00016666]
[1765985488864,0.3608,89968.0,89963.0,0.01016666]
[1765985489566,0.0111187,89967.0,89963.0,6e-08]
[1765985489771,0.3608,89967.0,89963.0,6e-08]
[1765985490376,0.57745,89964.0,89940.0,0.34968]
[1765985490671,0.3608,89959.0,89943.0,0.0111217]
[1765985490871,0.3608,89959.0,89945.0,0.0111214]
[1765985491056,0.3608,89959.0,89940.0,0.34968]
[1765985491256,0.3608,89959.0,89945.0,0.0111214]
[1765985491455,0.3608,89959.0,89940.0,0.34968]
[1765985491456,0.02844104,89975.0,89952.0,0.3608]
[1765985491660,0.3608,89984.0,89971.0,0.55324]
[1765985491857,0.0111165,89986.0,89969.0,0.3608]
[1765985492068,0.3608,89986.0,89969.0,0.3608]
[1765985492269,0.0111165,89985.0,89969.0,0.3608]
[1765985492466,0.09095656,89986.0,89977.0,0.3608]
[1765985492870,0.02753425,89990.0,89977.0,0.3608]
[1765985493056,0.40745198,89990.0,89977.0,0.3608]
[1765985493461,0.00016676,89990.0,89977.0,0.3608]
[1765985494064,0.01128276,89990.0,89977.0,0.3608]
[1765985494362,0.00016676,89990.0,89978.0,0.0111173]
[1765985494559,0.00016676,89990.0,89977.0,0.3608]
[1765985494758,0.3608,89984.0,89970.0,0.34968]
[1765985494959,0.3608,89984.0,89964.0,0.00016676]
[1765985494960,0.3608,89972.0,89964.0,0.00016676]
[1765985495668,0.3608,89972.0,89964.0,6e-08]
[1765985495867,0.0111182,89971.0,89964.0,6e-08]
[1765985496066,0.3608,89972.0,89964.0,6e-08]
[1765985496865,1.13056,89965.0,89947.0,0.3608]
[1765985497065,0.3608,89949.0,89931.0,0.0111231]
[1765985497269,0.3608,89949.0,89938.0,0.36302377]
[1765985497570,1.06864,89957.0,89938.0,0.36302377]
[1765985497771,0.3608,89966.0,89955.0,0.71048]
[1765985498074,0.02804672,89966.0,89955.0,0.71048]
[1765985498375,0.01128526,89969.0,89955.0,0.3608]
[1765985498579,0.05967846,89991.0,89955.0,0.3608]
[1765985498580,6e-08,89990.0,89989.0,1.15081]
[1765985498771,0.3608,89997.0,89985.0,0.34968]
[1765985499271,0.0111155,89993.0,89976.0,0.3608]
[1765985499478,0.3608,89979.0,89976.0,0.00016676]
[1765985499676,0.0111173,89978.0,89959.0,0.01037061]
[1765985499974,0.0111179,89974.0,89958.0,0.3608]
[1765985500177,0.3608,89965.0,89958.0,0.3608]
[1765985500377,0.3608,89979.0,89958.0,0.3608]
[1765985500378,0.0111181,89973.0,89958.0,0.3608]
[1765985500573,0.3608,89967.0,89958.0,0.3608]
[1765985500776,0.3608,89967.0,89940.0,0.3608019]
[1765985500777,0.0111198,89958.0,89957.0,6e-08]
[1765985501074,0.3608,89959.0,89938.0,0.01112223]
[1765985501275,0.3608,89951.0,89940.0,0.3719219]
[1765985501575,0.0111212,89947.0,89938.0,3e-08]
[1765985501778,0.3608,89951.0,89938.0,3e-08]
[1765985502078,0.0111208,89950.0,89938.0,3e-08]
[1765985502477,0.3608,89951.0,89936.0,9e-08]
[1765985502478,0.011122,89940.0,89936.0,9e-08]
[1765985502665,0.3608,89941.0,89936.0,9e-08]
[1765985503067,1.0254,89951.0,89936.0,9e-08]
[1765985503268,0.3608,89943.0,89936.0,9e-08]
[1765985503473,0.3719207,89951.0,89936.0,9e-08]
[1765985503675,0.0111211,89948.0,89936.0,9e-08]
[1765985503873,0.3608,89951.0,89936.0,9e-08]
[1765985504275,0.3719207,89951.0,89936.0,9e-08]
[1765985504476,0.3608,89943.0,89936.0,9e-08]
[1765985504981,0.001,89941.0,89936.0,9e-08]
[1765985505474,0.3608,89943.0,89936.0,9e-08]
[1765985505883,0.0111222,89939.0,89936.0,9e-08]
[1765985506279,0.0111228,89934.0,89908.0,0.3608]
[1765985506491,0.0111213,89946.0,89900.0,0.76808522]
[1765985506492,0.3608,89919.0,89900.0,0.76808522]
[1765985506785,0.3608,89929.0,89910.0,0.3608]
[1765985506984,0.28488,89935.0,89928.0,0.3608]
[1765985507172,0.02727241,89935.0,89928.0,0.3608]
[1765985507489,0.00011613,89934.0,89928.0,0.3608]
[1765985507883,3e-08,89934.0,89929.0,0.3608]
[1765985508788,0.3608,89973.0,89929.0,0.3608]
[1765985508985,0.34752,90000.0,89929.0,0.3608]
[1765985508986,0.3608,89989.0,89972.0,0.3608]
[1765985509283,0.40728522,90010.0,89988.0,0.3608]
[1765985509284,0.6498,89994.0,89988.0,0.3608]
[1765985509482,0.70796,89994.0,89986.0,0.3608]
[1765985509688,0.79567239,89994.0,89986.0,0.3608]
[1765985509987,0.3608,89992.0,89981.0,0.00016676]
[1765985510587,0.3719156,89992.0,89981.0,0.00016676]
[1765985510883,0.011116,89989.0,89981.0,0.00016676]
[1765985511087,0.0111168,89982.0,89981.0,6e-08]
[1765985511273,0.3608,89983.0,89981.0,6e-08]
[1765985511876,0.3608,89992.0,89981.0,6e-08]
[1765985512491,0.0111157,89991.0,89981.0,6e-08]
[1765985512792,0.001,89983.0,89981.0,6e-08]
[1765985513186,0.09070844,89994.0,89982.0,0.0111168]
[1765985513490,0.09070844,89994.0,89981.0,6e-08]
[1765985513491,0.70792,89994.0,89981.0,0.00100006]
[1765985513690,0.0111155,89993.0,89981.0,0.00100006]
[1765985513903,6e-08,89999.0,89998.0,1.54051]
[1765985514193,9e-08,90018.0,90015.0,0.35852]
[1765985514687,0.3608,90038.0,90018.0,0.0111123]
[1765985514889,0.3608,90038.0,90029.0,0.3608]
[1765985515088,0.01036791,90042.0,90037.0,0.3608]
[1765985515291,0.00016666,90043.0,90029.0,0.3608]
[1765985515292,0.3608,90040.0,90029.0,0.3608]
[1765985515478,0.3608,90040.0,90030.0,0.27782823]
[1765985515889,0.3608,90040.0,90024.0,0.00016666]
[1765985516195,0.0111098,90039.0,90024.0,0.00016666]
[1765985516489,0.3608,90040.0,90024.0,0.00016666]
[1765985517381,0.3608,90032.0,90024.0,0.00016666]
[1765985517581,0.3608,90032.0,90024.0,6e-08]
[1765985517582,0.0111115,90025.0,90024.0,6e-08]
[1765985517785,0.0111135,90010.0,89988.0,0.7078]
[1765985517991,0.3608,90007.0,89992.0,0.0111155]
[1765985518191,0.3608,90017.0,90003.0,0.3608]
[1765985518391,0.3608,90017.0,90007.0,0.27782823]
[1765985518692,0.0111127,90016.0,90000.0,0.3608]
[1765985518893,0.0111131,90013.0,90003.0,0.00016666]
[1765985519088,0.3719125,90017.0,90003.0,0.00016666]
[1765985519290,0.3608,90017.0,90007.0,0.27782823]
[1765985519490,0.3608,90017.0,90003.0,0.00016666]
[1765985519788,0.3608,90017.0,90008.0,0.3608]
[1765985520291,0.3608,90009.0,90007.0,3e-08]
[1765985520493,0.0111126,90016.0,90003.0,0.00116666]
[1765985520891,0.0111126,90016.0,89975.0,0.3608]
[1765985520892,0.0111166,89985.0,89975.0,0.3608]
[1765985521195,0.3608,89982.0,89975.0,3e-08]
[1765985521387,0.0111159,89990.0,89976.0,0.7216]
[1765985521696,0.3608,89990.0,89980.0,0.27782823]
[1765985521897,0.27782823,89990.0,89976.0,0.3608]
[1765985522192,0.3608,89985.0,89974.0,0.00011057]
[1765985522499,0.27782823,89990.0,89976.0,0.3608]
[1765985522793,0.3608,89981.0,89963.0,7e-08]
[1765985522993,0.3608,89981.0,89960.0,0.96006823]
[1765985523186,0.3608,89973.0,89960.0,0.96006823]
[1765985523389,0.3608,89963.0,89946.0,1.39024]
[1765985523593,0.27782823,89970.0,89944.0,0.00013606]
[1765985523594,0.3608,89947.0,89944.0,0.00013606]
[1765985523892,0.27782823,89960.0,89944.0,0.00013606]
[1765985524192,0.34752,89964.0,89952.0,0.3608]
[1765985524392,0.0111162,89988.0,89969.0,0.0111184]
[1765985524594,0.3608,89990.0,89977.0,0.3608]
[1765985525395,0.3608,89980.0,89975.0,0.00016675]
[1765985525792,0.001,89988.0,89979.0,0.3608]
[1765985525992,0.0111162,89987.0,89979.0,0.3608]
[1765985526194,0.0111172,89979.0,89975.0,5e-08]
[1765985526391,0.3608,89990.0,89976.0,0.3719176]
[1765985526594,5e-08,89992.0,89990.0,0.0111158]
[1765985527399,5e-08,89992.0,89991.0,0.4]
[1765985527796,0.0111157,89991.0,89984.0,0.3608]
[1765985528108,0.3608,89987.0,89973.0,0.0111179]
[1765985528302,0.3608,89987.0,89970.0,0.222525]
[1765985528500,0.3608,89979.0,89970.0,0.2336433]
[1765985528702,0.3608,89979.0,89961.0,0.3608]
[1765985528894,0.3608,89979.0,89962.0,0.0111193]
[1765985529093,0.3608,89979.0,89957.0,0.0111199]
[1765985529306,0.3608,89979.0,89952.0,0.3608]
[1765985529307,1.1618276,89976.0,89952.0,0.3608]
[1765985529500,0.3608,89979.0,89931.0,1.39024]
[1765985529501,0.0111183,89971.0,89945.0,0.0111214]
[1765985529700,0.3608,89955.0,89945.0,0.0111214]
[1765985529901,0.3608,89955.0,89937.0,0.0111223]
[1765985530093,0.3608,89947.0,89941.0,0.0111218]
[1765985530292,0.222525,89960.0,89942.0,0.0111218]
[1765985530293,0.3608,89955.0,89942.0,0.0111218]
[1765985530507,0.3608,89955.0,89941.0,0.00016675]
[1765985530508,0.3608,89945.0,89941.0,0.00016675]
[1765985530696,0.3608,89945.0,89926.0,0.0111236]
[1765985530898,0.33852,89946.0,89926.0,0.0111236]
[1765985530899,0.222525,89940.0,89926.0,0.3608]
[1765985531095,0.3608,89942.0,89926.0,0.3719237]
[1765985531303,0.0111182,89971.0,89946.0,0.0111212]
[1765985531506,0.0111182,89971.0,89957.0,0.3608]
[1765985531507,0.222525,89960.0,89957.0,0.3608]
[1765985531708,0.222525,89960.0,89928.0,0.0111234]
[1765985531709,0.33852,89946.0,89928.0,0.3608]
[1765985531893,0.33852,89946.0,89910.0,0.3608]
[1765985531894,0.33852,89928.0,89911.0,0.0111256]
[1765985532202,0.33852,89928.0,89907.0,0.011126]
[1765985532203,0.3608,89920.0,89907.0,0.011126]
[1765985532405,0.00016675,89922.0,89914.0,0.3608]
[1765985532606,5e-08,89922.0,89914.0,0.3608]
[1765985532993,5e-08,89922.0,89906.0,0.3608]
[1765985532994,0.3608,89919.0,89906.0,0.3608]
[1765985533194,0.3608,89919.0,89911.0,0.002]
[1765985533603,3e-08,89928.0,89918.0,0.3608]
[1765985533813,0.08963621,89936.0,89927.0,0.3608]
[1765985534111,0.3608,89933.0,89918.0,0.3608]
[1765985534295,0.3608,89933.0,89911.0,0.002]
[1765985534296,0.3608,89924.0,89911.0,0.002]
[1765985534500,0.3608,89915.0,89911.0,0.002]
[1765985534806,5.578e-05,89914.0,89904.0,0.00016675]
[1765985535207,0.00116675,89922.0,89910.0,0.0111257]
[1765985535396,0.222525,89930.0,89919.0,0.3608]
[1765985535603,0.3608,89939.0,89927.0,0.3608]
[1765985535797,0.222525,89940.0,89927.0,0.3608]
[1765985537702,0.00016675,89942.0,89939.0,0.3608]
[1765985538410,0.00016675,89942.0,89927.0,0.3608]
[1765985538411,0.225525,89940.0,89931.0,0.0111231]
[1765985538916,0.00016675,89942.0,89931.0,0.0111231]
[1765985539111,0.00116675,89942.0,89931.0,0.0111231]
[1765985539814,0.00016675,89942.0,89927.0,0.3608]
[1765985540207,0.3608,89937.0,89927.0,0.3608]
[1765985540404,0.3608,89928.0,89913.0,0.0111253]
[1765985541417,0.3608,89928.0,89912.0,0.00016675]
[1765985541613,0.3608,89937.0,89921.0,0.3608]
[1765985542007,0.222525,89931.0,89921.0,0.3608]
[1765985542203,0.0111253,89914.0,89912.0,5e-08]
[1765985542420,0.7216,89927.0,89912.0,5e-08]
[1765985542421,0.3608,89915.0,89912.0,5e-08]
[1765985542718,0.3608,89917.0,89903.0,0.00012124]
[1765985543211,0.09033403,89943.0,89909.0,0.7216]
[1765985543424,0.3608,89944.0,89927.0,0.0111236]
[1765985543605,0.36096675,89944.0,89935.0,0.0111226]
[1765985543807,0.36096675,89944.0,89941.0,0.3719219]
[1765985543808,5e-08,89944.0,89941.0,0.3719219]
[1765985544023,5e-08,89944.0,89943.0,1.16437]
[1765985544205,0.3608,89986.0,89949.0,0.0111209]
[1765985544511,0.222525,89990.0,89964.0,0.011119]
[1765985544705,0.0111163,89987.0,89964.0,0.011119]
[1765985544910,0.222525,89980.0,89967.0,0.3608]
[1765985545116,0.583325,89980.0,89965.0,0.00016675]
[1765985545414,0.00016675,89982.0,89978.0,0.3608]
[1765985546217,0.3608,89979.0,89966.0,0.0111188]
[1765985546920,0.3608,89979.0,89965.0,0.00016675]
[1765985547113,0.00016675,89982.0,89965.0,0.00016675]
[1765985547415,5e-08,89982.0,89970.0,0.583325]
[1765985547621,5e-08,89987.0,89970.0,0.583325]
[1765985547806,5e-08,89987.0,89980.0,0.3608]
[1765985548406,5e-08,89987.0,89965.0,0.00016675]
[1765985548613,0.222525,89975.0,89965.0,5e-08]
[1765985548817,0.3719186,89969.0,89965.0,5e-08]
[1765985549209,1.14824,89966.0,89965.0,5e-08]
[1765985549620,0.0111187,89967.0,89965.0,5e-08]
[1765985549817,1.14824,89966.0,89965.0,5e-08]
[1765985550215,0.33852,89965.0,89925.0,0.1054839]
[1765985550423,0.222525,89950.0,89940.0,0.3608]
[1765985550717,0.33852,89965.0,89949.0,0.3608]
[1765985550918,0.33852,89965.0,89937.0,0.3608]
[1765985550919,0.3608,89951.0,89937.0,0.3608]
[1765985551219,0.3608,89951.0,89937.0,0.3719224]
[1765985551529,5e-08,89953.0,89947.0,0.0111211]
[1765985551819,5e-08,89953.0,89947.0,0.0111212]
[1765985552117,0.33852,89965.0,89946.0,0.3608]
[1765985552317,0.33852,89965.0,89954.0,0.3608]
[1765985552620,0.3719187,89967.0,89954.0,0.3608]
[1765985552818,0.0111188,89966.0,89954.0,0.3608]
[1765985553123,0.3608,89967.0,89954.0,0.3608]
[1765985553811,0.3618,89967.0,89954.0,0.3608]
[1765985554313,0.0111192,89963.0,89946.0,0.3608]
[1765985554616,0.222525,89960.0,89946.0,0.3719212]
[1765985555321,0.3608,89954.0,89937.0,0.3608]
[1765985555618,0.222525,89950.0,89937.0,0.3608]
[1765985555816,0.222525,89950.0,89938.0,0.0111223]
[1765985556027,0.3608,89954.0,89946.0,0.3608]
[1765985556922,0.3608,89954.0,89947.0,0.0111212]
[1765985557416,0.33852,89964.0,89947.0,0.0111212]
[1765985557820,0.33852,89964.0,89946.0,0.3608]
[1765985557821,0.3496391,89964.0,89946.0,0.3608]
[1765985558320,5e-08,89969.0,89968.0,1.16437]
[1765985558527,0.05967025,90000.0,89968.0,0.3608]
[1765985558819,0.0111137,90008.0,89997.0,0.3608]
[1765985559034,0.05967025,90009.0,89997.0,0.3608]
[1765985559220,0.05967025,90010.0,89997.0,0.3608]
[1765985559523,0.28219525,90010.0,89997.0,0.3608]
[1765985560213,0.001,90009.0,89997.0,0.3608]
[1765985560418,0.0111142,90004.0,89994.0,0.00016675]
[1765985560617,0.05967025,90007.0,89990.0,0.3608]
[1765985560823,0.0111147,89999.0,89990.0,0.3608]
[1765985561019,0.569695,90000.0,89990.0,0.3608]
[1765985561318,0.05967025,90009.0,89990.0,0.3719158]
[1765985561516,0.05967025,90009.0,89994.0,0.0111153]
[1765985561723,0.05967025,90009.0,89999.0,0.583325]
[1765985561925,0.001,90010.0,90003.0,0.0111142]
[1765985562429,3.56e-06,90012.0,90009.0,0.3608]
[1765985562924,1e-08,90013.0,90009.0,0.3608]
[1765985564120,6e-08,90020.0,90009.0,0.3608]
[1765985564320,0.222525,90020.0,90019.0,0.3608]
[1765985564527,0.3608,90023.0,90009.0,0.3608]
[1765985565117,0.3608,90023.0,90009.0,0.3719135]
[1765985565322,0.3608,90023.0,90009.0,0.3608]
[1765985565524,0.3608,90023.0,90009.0,0.3719135]
[1765985565723,0.3608,90023.0,90009.0,0.3608]
[1765985567024,0.3608,90010.0,90007.0,0.00016665]
[1765985567935,0.3608,90010.0,90007.0,5e-08]
[1765985569329,1.53229,90008.0,90007.0,5e-08]
[1765985569831,0.0111139,90006.0,89973.0,0.0995979]
[1765985570037,0.3729135,90010.0,89973.0,0.0995979]
[1765985570038,0.3608,89983.0,89973.0,0.0995979]
[1765985570235,0.3608,89983.0,89976.0,0.0111175]
[1765985570533,0.3608,89995.0,89982.0,0.3608]
[1765985571536,0.36096665,89997.0,89982.0,0.3608]
[1765985572229,0.36096665,89997.0,89970.0,9.332e-05]
[1765985572230,0.3608,89985.0,89970.0,9.332e-05]
[1765985572430,0.222525,89992.0,89970.0,9.332e-05]
[1765985572431,0.3608,89972.0,89970.0,9.332e-05]
[1765985572732,0.3608,89984.0,89971.0,0.3719182]
[1765985572935,0.3608,89984.0,89974.0,0.0111177]
[1765985573127,0.3608,89984.0,89971.0,0.3608]
[1765985573529,0.3608,89984.0,89975.0,0.0111177]
[1765985573724,5e-08,89997.0,89995.0,0.0111151]
[1765985573926,5e-08,89997.0,89996.0,0.3608]
[1765985574330,5e-08,89997.0,89995.0,0.3608]
[1765985574532,5e-08,89997.0,89995.0,0.3719152]
[1765985575127,5e-08,89997.0,89996.0,1.16725]
[1765985575631,5e-08,89997.0,89995.0,0.3719152]
[1765985576230,5e-08,89997.0,89995.0,0.3608]
[1765985576740,5e-08,89997.0,89983.0,0.3608]
[1765985576932,5e-08,89997.0,89991.0,0.3608]
[1765985577127,0.3608,89992.0,89975.0,0.3608]
[1765985577534,0.3608,89992.0,89983.0,0.0111167]
[1765985577937,5e-08,89997.0,89992.0,0.0111156]
[1765985578131,5e-08,89997.0,89991.0,0.3608]
[1765985578739,0.00100005,89997.0,89991.0,0.3608]
[1765985579145,0.3608,89992.0,89977.0,0.3719174]
[1765985579336,0.3608,89992.0,89979.0,0.0111171]
[1765985579737,0.3608,89992.0,89977.0,0.3608]
[1765985580139,0.3608,89995.0,89977.0,0.3608]
[1765985580735,0.3608,89995.0,89978.0,0.0111173]
[1765985580938,0.3608,89995.0,89977.0,0.3608]
[1765985581135,0.3608,89995.0,89980.0,0.40775579]
[1765985581335,0.00100005,89997.0,89989.0,0.3608]
[1765985581552,5e-08,89997.0,89994.0,0.0111153]
[1765985581846,5e-08,89997.0,89989.0,0.3608]
[1765985581847,0.0111136,90009.0,89990.0,0.0111158]
[1765985582140,0.3608,89999.0,89980.0,0.76855579]
[1765985582534,0.3608,90014.0,89998.0,0.3608]
[1765985583146,0.3608,90014.0,89998.0,0.3719148]
[1765985583348,0.01127945,90015.0,89998.0,0.3719148]
[1765985583349,0.00016665,90015.0,90006.0,0.3608]
[1765985583554,0.00016665,90015.0,90014.0,0.3608]
[1765985583555,5e-08,90015.0,90014.0,0.3608]
[1765985583931,0.36080005,90015.0,89998.0,0.001]
[1765985584243,0.70797005,90015.0,89998.0,0.001]
[1765985584437,5e-08,90015.0,90006.0,0.0111139]
[1765985584631,5e-08,90015.0,90005.0,0.3608]
[1765985584831,5e-08,90015.0,90014.0,0.3608]
[1765985585039,5e-08,90015.0,90014.0,0.3719129]
[1765985585239,0.40686402,90045.0,90014.0,0.3719129]
[1765985585240,0.34717,90045.0,90024.0,0.0111116]
[1765985585440,0.34717,90045.0,90024.0,0.3608]
[1765985585740,0.0111098,90040.0,90024.0,0.3608]
[1765985586250,0.3608,90027.0,90012.0,0.3608]
[1765985586447,0.3608,90027.0,90013.0,0.011113]
[1765985586649,0.3608,90027.0,90012.0,0.3608]
[1765985587147,0.3608,90017.0,90007.0,0.0111137]
[1765985587444,0.3608,90017.0,89994.0,0.0111153]
[1765985587445,0.0111151,89996.0,89993.0,2e-08]
[1765985587644,0.34717,90000.0,89978.0,0.3719172]
[1765985587836,0.3608,89994.0,89982.0,0.0111167]
[1765985588036,0.3608,89994.0,89978.0,0.3608]
[1765985588237,0.3608,89994.0,89982.0,0.0111168]
[1765985588442,0.3608,89994.0,89982.0,0.0111167]
[1765985589057,0.00016665,89997.0,89993.0,0.3608]
[1765985589744,0.41763448,90020.0,89997.0,0.0111149]
[1765985589935,0.00222179,90018.0,90003.0,0.3608]
[1765985590439,9e-08,90018.0,90015.0,0.0111127]
[1765985590639,9e-08,90018.0,90013.0,0.3608]
[1765985590841,9e-08,90018.0,90016.0,0.0111125]
[1765985591155,9e-08,90018.0,90015.0,0.0111128]
[1765985592755,1e-08,90032.0,90029.0,0.011111]
[1765985592935,0.0111111,90029.0,90012.0,0.3608]
[1765985593245,0.3608,90030.0,90012.0,0.3608]
[1765985593246,0.3608,90030.0,90019.0,0.0111122]
[1765985593452,0.3608,90030.0,90012.0,0.3608]
[1765985593649,0.08678457,90034.0,90028.0,0.3608]
[1765985593845,0.40792244,90040.0,90028.0,0.3608]
[1765985594344,0.43583228,90040.0,90028.0,0.3608]
[1765985594552,0.3608,90038.0,90028.0,0.3608]
[1765985594754,0.00016665,90040.0,90028.0,0.3719111]
[1765985595245,0.40792244,90040.0,90028.0,0.3608]
[1765985595441,0.3608,90037.0,90028.0,0.3608]
[1765985595642,0.41903214,90040.0,90028.0,0.3608]
[1765985595643,0.40792244,90040.0,90028.0,0.3608]
[1765985596147,0.40974637,90040.0,90028.0,0.3608]
[1765985596848,0.002,90037.0,90028.0,0.3608]
[1765985597348,0.0111112,90028.0,90005.0,0.011114]
[1765985597548,0.34723,90030.0,90010.0,0.0111134]
[1765985597549,0.3608,90021.0,90010.0,0.0111134]
[1765985597749,0.3608,90021.0,90011.0,0.0111132]
[1765985598148,0.3608,90021.0,90008.0,0.0111136]
[1765985598350,0.75480972,90030.0,90020.0,0.3608]
[1765985598546,0.59644,90021.0,90014.0,0.3608]
[1765985598742,0.3608,90027.0,89999.0,0.0111147]
[1765985598743,0.3608,90017.0,89999.0,0.0111147]
[1765985598949,0.3608,90017.0,89986.0,0.3608]
[1765985598950,0.3608,90017.0,90000.0,0.3608]
[1765985599246,0.05969402,90038.0,90000.0,0.3608]
[1765985599247,0.05969402,90036.0,90016.0,0.3608]
[1765985599452,2e-08,90036.0,90032.0,0.3608]
[1765985599653,0.08687943,90040.0,90032.0,0.3608]
[1765985599954,0.3608,90048.0,90032.0,0.3608]
[1765985599955,0.011109,90046.0,90032.0,0.3608]
[1765985600154,0.38798815,90048.0,90032.0,0.3608]
[1765985600740,0.7216,90040.0,90003.0,0.3608]
[1765985600945,0.34723,90045.0,90003.0,0.3608]
[1765985600946,0.40757972,90020.0,90003.0,0.3608]
[1765985601141,0.3608,90013.0,90003.0,0.3608]
[1765985601645,0.3608,90013.0,89988.0,0.3608]
[1765985601844,0.40757972,90000.0,89991.0,0.00016665]
[1765985602051,0.3608,89995.0,89991.0,0.00016665]
[1765985603155,0.40774637,90010.0,89994.0,0.3608]
[1765985603156,0.00016665,90010.0,89994.0,0.3608]
[1765985603345,0.001,90013.0,89994.0,0.3608]
[1765985603346,5e-08,90013.0,90012.0,0.0111131]
[1765985603545,5e-08,90013.0,90009.0,0.3608]
[1765985603949,0.3608,90011.0,89994.0,0.3608]
[1765985604151,5e-08,90013.0,90010.0,0.3608]
[1765985604955,9e-08,90017.0,90010.0,0.3608]
[1765985605253,5e-08,90021.0,90018.0,0.0111124]
[1765985605445,5e-08,90021.0,90020.0,1.16235]
[1765985605644,0.21072,90045.0,90029.0,0.011111]
[1765985605853,0.40757972,90040.0,90037.0,0.3608]
[1765985606057,0.21072,90045.0,90037.0,0.3608]
[1765985606353,0.2218291,90045.0,90037.0,0.3608]
[1765985606556,0.21072,90045.0,90037.0,0.3608]
[1765985606959,0.004,90040.0,90037.0,0.3608]
[1765985608049,0.00016665,90050.0,90038.0,0.0111099]
[1765985608050,0.40774637,90050.0,90038.0,0.0111099]
[1765985608456,0.3608,90052.0,90040.0,0.0111096]
[1765985608647,0.05496318,90058.0,90045.0,0.3608]
[1765985608844,0.3608,90062.0,90045.0,0.3608]
[1765985609155,0.64229059,90074.0,90060.0,0.3608]
[1765985609460,0.40757972,90070.0,90060.0,0.3608]
[1765985609848,0.40757972,90070.0,90069.0,0.3608]
[1765985610047,0.07994698,90074.0,90058.0,0.00016656]
[1765985610353,0.3608,90072.0,90058.0,0.00016656]
[1765985610555,0.08672173,90090.0,90071.0,0.0111058]
[1765985610749,0.46904945,90096.0,90084.0,0.3608]
[1765985610946,0.40757972,90090.0,90084.0,0.3608]
[1765985611564,0.40757972,90090.0,90067.0,0.3608]
[1765985611565,0.3608,90085.0,90078.0,0.00016656]
[1765985611852,0.3608,90085.0,90067.0,0.3719063]
[1765985612056,0.3608,90085.0,90068.0,1.5]
[1765985612252,0.40757972,90080.0,90068.0,1.5]
[1765985612454,0.40757972,90080.0,90049.0,0.3608]
[1765985612455,0.3608,90074.0,90049.0,0.3608]
[1765985612655,0.3719042,90085.0,90048.0,0.35781]
[1765985612656,0.3608,90056.0,90048.0,0.35781]
[1765985612858,0.00016656,90061.0,90048.0,0.35781]
[1765985613156,0.3618,90074.0,90059.0,0.3608]
[1765985613157,0.001,90074.0,90059.0,0.3608]
[1765985613353,0.3608,90089.0,90069.0,0.3719061]
[1765985613755,0.3608,90089.0,90077.0,0.3608]
[1765985615750,0.0111038,90088.0,90077.0,0.3608]
[1765985616057,0.3608,90089.0,90077.0,0.3618]
[1765985616358,0.40757972,90090.0,90077.0,0.3618]
[1765985616563,0.0111031,90093.0,90077.0,0.3618]
[1765985616764,0.0284198,90096.0,90077.0,0.3618]
[1765985616963,0.011103,90095.0,90077.0,0.3618]
[1765985617353,0.0300571,90098.0,90077.0,0.3729051]
[1765985617549,0.0411596,90098.0,90077.0,0.3618]
[1765985617754,0.0411596,90098.0,90085.0,0.3608]
[1765985617952,0.0300571,90098.0,90085.0,0.3608]
[1765985618361,0.00221982,90098.0,90085.0,0.3608]
[1765985618559,0.00221982,90098.0,90093.0,0.3608]
[1765985618762,0.00221982,90098.0,90085.0,0.3608]
[1765985618763,0.3608,90096.0,90085.0,0.3608]
[1765985618955,0.3608,90096.0,90085.0,0.59751]
[1765985619152,0.0111029,90095.0,90077.0,0.001]
[1765985619363,0.3608,90096.0,90084.0,0.3608]